fUST/lending_fUST_20240908
["ID","MTS","AMOUNT","RATE_DAILY","PERIOD"]
[337521287,1725733855182,-500.0,0.0009315,120]
[337521288,1725733855192,-335.72430385,0.0009315,120]
[337521289,1725733855201,-2862.78,0.0009315,120]
[337521290,1725733855211,-500.0,0.0009315,120]
[337521291,1725733855221,-500.0,0.0009315,120]
[337521292,1725733855231,-3000.59,0.0009315,120]
[337521293,1725733855240,-1000.0,0.0009315,120]
[337521294,1725733855250,-5530.21,0.0009315,120]
[337521295,1725733855260,-4234.13,0.0009315,120]
[337521296,1725733855269,-500.0,0.0009315,120]
[337521297,1725733855278,-17584.32,0.0009315,120]
[337521298,1725733855288,-893.27,0.0009315,120]
[337521299,1725733855298,-500.0,0.0009315,120]
[337521300,1725733855308,-1875.73,0.0009315,120]
[337521301,1725733855317,-942.92,0.0009315,120]
[337521302,1725733855326,-500.0,0.0009315,120]
[337521303,1725733855335,-500.0,0.0009315,120]
[337521304,1725733855344,-3269.67,0.0009315,120]
[337521305,1725733855354,-500.0,0.00093507,120]
[337521306,1725733855416,-119315.35089444,0.000945,120]
[337521307,1725733855430,-7999.78000099,0.0009475,120]
[337521308,1725733855440,-9999.78,0.0009475,120]
[337521309,1725733855449,-6103.10322859,0.0009488,60]
[337521310,1725733855458,-24540.09577554,0.000949,120]
[337521311,1725733855467,-544.499,0.0009497,120]
[337521312,1725733855477,-1500.0,0.00095,120]
[337521313,1725733855486,-500.0,0.00095,120]
[337521314,1725733855495,-3996.52744936,0.00095,120]
[337521315,1725733855505,-300.0,0.00095185,120]
[337521316,1725733855515,-166.514222,0.00095389,120]
[337521317,1725733855524,-583.892109,0.00095458,120]
[337521318,1725733855533,-166.107891,0.00095458,120]
[337521319,1725733855543,-180.0,0.00095868,60]
[337521320,1725733855554,-508.491,0.0009589,120]
[337521321,1725733855564,-2000.0,0.0009589,120]
[337521322,1725733855573,-7015.23368184,0.000975,30]
[337521323,1725733855582,-300.0,0.00097913,120]
[337521324,1725733855591,-5000.0,0.00098,120]
[337521325,1725733855601,-616.0,0.00098,120]
[337521326,1725733855610,-254.6,0.00098024,120]
[337521327,1725733855620,-583.892109,0.00098053,120]
[337521328,1725733855629,-166.107891,0.00098053,120]
[337521329,1725733855638,-2269.19169624,0.0009825,60]
[337521330,1725733855648,-500.0,0.0009863,120]
[337521331,1725733855657,-500.0,0.0009863,120]
[337521332,1725733855668,-688.96,0.0009863,120]
[337521333,1725733855679,-3161.89,0.0009863,120]
[337521334,1725733855689,-500.0,0.0009863,120]
[337521335,1725733855699,-500.0,0.0009863,120]
[337521336,1725733855707,-500.0,0.0009863,120]
[337521337,1725733855716,-500.63432217,0.0009863,120]
[337521338,1725733855725,-1152.62,0.0009863,120]
[337521339,1725733855735,-1124.99,0.0009863,120]
[337521340,1725733855744,-560.72,0.0009863,120]
[337521341,1725733855754,-2174.31,0.0009863,120]
[337521342,1725733855763,-2074.5,0.0009863,120]
[337521343,1725733855774,-438.96464248,0.0009863,120]
[337521344,1725733855783,-2862.78,0.0009863,120]
[337521345,1725733855793,-500.0,0.0009863,120]
[337521346,1725733855803,-500.0,0.0009863,120]
[337521347,1725733855812,-3000.59,0.0009863,120]
[337521348,1725733855822,-1000.0,0.0009863,120]
[337521349,1725733855832,-5530.21,0.0009863,120]
[337521350,1725733855842,-4234.13,0.0009863,120]
[337521351,1725733855851,-404.7474342,0.0009863,120]
[337521352,1725733855861,-17584.32,0.0009863,120]
[337521353,1725733855870,-893.27,0.0009863,120]
[337521354,1725733855879,-500.0,0.0009863,120]
[337521355,1725733855889,-1875.73,0.0009863,120]
[337521356,1725733855898,-942.92,0.0009863,120]
[337521357,1725733855907,-500.0,0.0009863,120]
[337521358,1725733855915,-500.0,0.0009863,120]
[337521359,1725733855928,-3269.67,0.0009863,120]
[337521360,1725733855937,-766.49847992,0.0009893,30]
[337521361,1725733855947,-467.27801996,0.0009893,30]
[337521362,1725733855956,-2000.0,0.00099,120]
[337521363,1725733855965,-9102.90001023,0.00099,120]
[337521364,1725733855976,-1377230.66143966,0.00099425,120]
[337521365,1725733855985,-100000.0,0.00099427,120]
[337521366,1725733855994,-52250.826709,0.000997,120]
[337521367,1725733856003,-3610000.0,0.0009976,120]
[337521368,1725733856012,-150.0,0.000999,120]
[337521369,1725733856021,-1000.0,0.00099999,120]
[337521370,1725733856031,-500.0,0.00099999,120]
[337521371,1725733856040,-500.0,0.00099999,120]
[337521372,1725733856049,-500.0,0.00099999,31]
[337521373,1725733856059,-500.0,0.00099999,120]
[337521374,1725733856068,-500.0,0.00099999,120]
[337521375,1725733856078,-386.68624226,0.00099999,120]
[337521376,1725733856087,-361.79155819,0.00099999,31]
[337521377,1725733856096,-500.0,0.00099999,120]
[337521378,1725733856105,-500.0,0.00099999,120]
[337521379,1725733856114,-500.0,0.00099999,120]
[337521380,1725733856123,-500.0,0.00099999,120]
[337521381,1725733856132,-500.0,0.00099999,120]
[337521382,1725733856141,-500.0,0.00099999,120]
[337521383,1725733856150,-500.0,0.00099999,120]
[337521384,1725733856159,-500.0,0.00099999,120]
[337521385,1725733856172,-500.0,0.00099999,120]
[337521386,1725733856181,-500.0,0.00099999,120]
[337521387,1725733856190,-603.95921679,0.00099999,120]
[337521388,1725733856199,-225.85099219,0.00099999,120]
[337521389,1725733856209,-500.0,0.00099999,120]
[337521390,1725733856218,-500.0,0.00099999,120]
[337521391,1725733856227,-500.0,0.00099999,120]
[337521392,1725733856236,-500.0,0.00099999,120]
[337521393,1725733856246,-500.0,0.00099999,120]
[337521394,1725733856255,-500.0,0.00099999,120]
[337521395,1725733856264,-500.0,0.00099999,120]
[337521396,1725733856273,-500.0,0.00099999,120]
[337521397,1725733856283,-500.0,0.00099999,120]
[337521398,1725733856292,-500.0,0.00099999,120]
[337521399,1725733856301,-500.0,0.00099999,120]
[337521400,1725733856310,-200.0,0.00099999,120]
[337521401,1725733856319,-500.0,0.00099999,120]
[337521402,1725733856329,-500.0,0.00099999,120]
[337521403,1725733856338,-500.0,0.00099999,120]
[337521404,1725733856348,-500.0,0.00099999,120]
[337521405,1725733856358,-1000.0,0.001,120]
[337521406,1725733856367,-1000.0,0.001,120]
[337521407,1725733856376,-506.74567616,0.001,120]
[337521408,1725733856384,-500.0,0.001,120]
[337521409,1725733856394,-3000.0,0.001,120]
[337521410,1725733856404,-151.0,0.001,120]
[337521411,1725733856414,-10000.0,0.001,120]
[337521412,1725733856425,-4996.48950796,0.001,120]
[337521413,1725733856435,-1126.48728144,0.001,120]
[337521414,1725733856445,-29858.0793016,0.001,120]
[337521415,1725733856454,-41027.23078467,0.001,120]
[337521416,1725733856463,-1404.26316885,0.001,120]
[337521417,1725733856472,-300.0,0.00100641,120]
[337521418,1725733856482,-583.892109,0.00100649,120]
[337521419,1725733856492,-166.107891,0.00100649,120]
[337521420,1725733856501,-150.0,0.001009,120]
[337521421,1725733856511,-200.0,0.001019,120]
[337521422,1725733856521,-152.0,0.00102623,120]
[337521423,1725733856530,-583.892109,0.00103244,120]
[337521424,1725733856540,-166.107891,0.00103244,120]
[337521425,1725733856549,-300.0,0.00103369,120]
[337521426,1725733856559,-254.6,0.00103912,120]
[337521427,1725733856618,-500.0,0.00104109,120]
[337521428,1725733856627,-500.0,0.00104109,120]
[337521429,1725733856636,-688.96,0.00104109,120]
[337521430,1725733856645,-3161.89,0.00104109,120]
[337521431,1725733856654,-1152.62,0.00104109,120]
[337521432,1725733856664,-1124.99,0.00104109,120]
[337521433,1725733856676,-560.72,0.00104109,120]
[337521434,1725733856687,-2174.31,0.00104109,120]
[337521435,1725733856696,-2074.5,0.00104109,120]
[337521436,1725733856705,-2862.78,0.00104109,120]
[337521437,1725733856715,-500.0,0.00104109,120]
[337521438,1725733856726,-262.26,0.00104109,120]
[337521439,1725733856736,-3000.59,0.00104109,120]
[337521440,1725733856746,-1000.0,0.00104109,120]
[337521441,1725733856757,-5530.21,0.00104109,120]
[337521442,1725733856767,-4234.13,0.00104109,120]
[337521443,1725733856777,-17584.32,0.00104109,120]
[337521444,1725733856786,-893.27,0.00104109,120]
[337521445,1725733856796,-497.0,0.00104109,120]
[337521446,1725733856805,-1875.73,0.00104109,120]
[337521447,1725733856815,-942.92,0.00104109,120]
[337521448,1725733856825,-579.0312612,0.00104109,120]
[337521449,1725733856834,-500.0,0.00104109,120]
[337521450,1725733856844,-3269.67,0.00104109,120]
[337521451,1725733856853,-1500.0,0.00105,120]
[337521452,1725733856863,-583.892109,0.0010584,120]
[337521453,1725733856872,-166.107891,0.0010584,120]
[337521454,1725733856882,-300.0,0.00106098,120]
[337521455,1725733856891,-583.892109,0.00108436,120]
[337521456,1725733856901,-166.107891,0.00108436,120]
[337521457,1725733856911,-300.0,0.00108826,120]
[337521458,1725733856923,-190.0,0.00109567,60]
[337521459,1725733856939,-5387.58,0.00109589,120]
[337521460,1725733856948,-500.0,0.00109589,120]
[337521461,1725733856958,-500.0,0.00109589,120]
[337521462,1725733856968,-688.96,0.00109589,120]
[337521463,1725733856977,-3161.89,0.00109589,120]
[337521464,1725733856987,-5000.0,0.00109589,120]
[337521465,1725733856997,-1152.62,0.00109589,120]
[337521466,1725733857007,-1124.99,0.00109589,120]
[337521467,1725733857016,-560.72,0.00109589,120]
[337521468,1725733857026,-2174.31,0.00109589,120]
[337521469,1725733857035,-2074.5,0.00109589,120]
[337521470,1725733857045,-2000.0,0.00109589,120]
[337521471,1725733857054,-2862.78,0.00109589,120]
[337521472,1725733857064,-500.0,0.00109589,120]
[337521473,1725733857074,-3000.59,0.00109589,120]
[337521474,1725733857083,-1000.0,0.00109589,120]
[337521475,1725733857093,-5530.21,0.00109589,120]
[337521476,1725733857103,-4234.13,0.00109589,120]
[337521477,1725733857112,-17584.32,0.00109589,120]
[337521478,1725733857121,-893.27,0.00109589,120]
[337521479,1725733857131,-1875.73,0.00109589,120]
[337521480,1725733857140,-942.92,0.00109589,120]
[337521481,1725733857151,-500.0,0.00109589,120]
[337521482,1725733857160,-3269.67,0.00109589,120]
[337521483,1725733857172,-254.6,0.001098,120]
[337521484,1725733857182,-13939.65525911,0.0011,120]
[337521485,1725733857191,-1000.0,0.0011,120]
[337521486,1725733857201,-500.0,0.0011,120]
[337521487,1725733857212,-3000.0,0.0011,120]
[337521488,1725733857221,-544.499,0.0011,120]
[337521489,1725733857232,-2000.0,0.00111,120]
[337521490,1725733857243,-583.892109,0.00111031,120]
[337521491,1725733857253,-166.107891,0.00111031,120]
[337521492,1725733857263,-300.0,0.00111554,120]
[337521493,1725733857272,-583.892109,0.00113627,120]
[337521494,1725733857282,-166.107891,0.00113627,120]
[337521495,1725733857292,-300.0,0.00114282,120]
[337521496,1725733857301,-3000.0,0.00115,120]
[337521497,1725733857312,-500.0,0.00115068,120]
[337521498,1725733857323,-500.0,0.00115068,120]
[337521499,1725733857334,-688.96,0.00115068,120]
[337521500,1725733857343,-3161.89,0.00115068,120]
[337521501,1725733857353,-1152.62,0.00115068,120]
[337521502,1725733857363,-1124.99,0.00115068,120]
[337521503,1725733857373,-560.72,0.00115068,120]
[337521504,1725733857384,-2174.31,0.00115068,120]
[337521505,1725733857396,-2074.5,0.00115068,120]
[337521506,1725733857406,-2862.78,0.00115068,120]
[337521507,1725733857416,-500.0,0.00115068,120]
[337521508,1725733857428,-3000.59,0.00115068,120]
[337521509,1725733857437,-1000.0,0.00115068,120]
[337521510,1725733857447,-5530.21,0.00115068,120]
[337521511,1725733857457,-4234.13,0.00115068,120]
[337521512,1725733857466,-17584.32,0.00115068,120]
[337521513,1725733857477,-893.27,0.00115068,120]
[337521514,1725733857487,-1875.73,0.00115068,120]
[337521515,1725733857499,-942.92,0.00115068,120]
[337521516,1725733857510,-500.0,0.00115068,120]
[337521517,1725733857521,-3269.67,0.00115068,120]
[337521518,1725733857530,-500.0,0.00115278,120]
[337521519,1725733857541,-500.0,0.00116007,120]
[337521520,1725733857553,-2000.0,0.001162,120]
[337521521,1725733857564,-583.892109,0.00116222,120]
[337521522,1725733857573,-166.107891,0.00116222,120]
[337521523,1725733857583,-300.0,0.0011701,120]
[337521524,1725733857592,-1400.35754406,0.00117246,2]
[337521525,1725733857604,-583.892109,0.00118818,120]
[337521526,1725733857613,-166.107891,0.00118818,120]
[337521527,1725733857623,-300.0,0.00119739,120]
[337521528,1725733857633,-2000.0,0.0012,120]
[337521529,1725733857642,-10000.0,0.0012,120]
[337521530,1725733857652,-1000.0,0.0012,120]
[337521531,1725733857664,-500.0,0.0012,120]
[337521532,1725733857678,-619.0,0.0012,60]
[337521533,1725733857692,-1500.0,0.0012,120]
[337521534,1725733857703,-1503.99999901,0.0012,120]
[337521535,1725733857712,-183.68548344,0.00120547,120]
[337521536,1725733857722,-688.96,0.00120547,120]
[337521537,1725733857782,-3161.89,0.00120547,120]
[337521538,1725733857793,-1152.62,0.00120547,120]
[337521539,1725733857802,-1124.99,0.00120547,120]
[337521540,1725733857814,-560.72,0.00120547,120]
[337521541,1725733857824,-2174.31,0.00120547,120]
[337521542,1725733857835,-2074.5,0.00120547,120]
[337521543,1725733857845,-2862.78,0.00120547,120]
[337521544,1725733857855,-500.0,0.00120547,120]
[337521545,1725733857864,-3000.59,0.00120547,120]
[337521546,1725733857874,-1000.0,0.00120547,120]
[337521547,1725733857883,-5530.21,0.00120547,120]
[337521548,1725733857892,-4234.13,0.00120547,120]
[337521549,1725733857902,-17584.32,0.00120547,120]
[337521550,1725733857911,-893.27,0.00120547,120]
[337521551,1725733857921,-1875.73,0.00120547,120]
[337521552,1725733857930,-942.92,0.00120547,120]
[337521553,1725733857940,-500.0,0.00120547,120]
[337521554,1725733857949,-3269.67,0.00120547,120]
[337521555,1725733857959,-583.892109,0.00121413,120]
[337521556,1725733857968,-166.107891,0.00121413,120]
[337521557,1725733857978,-410.1493314,0.00121605,120]
[337521558,1725733857987,-300.0,0.00122467,120]
[337521559,1725733857997,-166.514222,0.00122841,120]
[337521560,1725733858007,-200.0,0.00123266,60]
[337521561,1725733858017,-2000.0,0.00123287,120]
[337521562,1725733858027,-583.892109,0.00124009,120]
[337521563,1725733858036,-166.107891,0.00124009,120]
[337521564,1725733858046,-500.0,0.00124275,120]
[337521565,1725733858056,-500.0,0.00124294,120]
[337521566,1725733858066,-250000.0,0.0012444,30]
[337521567,1725733858075,-500.0,0.00124657,120]
[337521568,1725733858085,-3000.0,0.00125,120]
[337521569,1725733858094,-300.0,0.00125195,120]
[337521570,1725733858103,-688.96,0.00126027,120]
[337521571,1725733858112,-3161.89,0.00126027,120]
[337521572,1725733858122,-1152.62,0.00126027,120]
[337521573,1725733858132,-1124.99,0.00126027,120]
[337521574,1725733858141,-560.72,0.00126027,120]
[337521575,1725733858150,-2174.31,0.00126027,120]
[337521576,1725733858159,-2074.5,0.00126027,120]
[337521577,1725733858169,-2862.78,0.00126027,120]
[337521578,1725733858179,-449.21247074,0.00126027,120]
[337521579,1725733858188,-3000.59,0.00126027,120]
[337521580,1725733858198,-1000.0,0.00126027,120]
[337521581,1725733858207,-5530.21,0.00126027,120]
[337521582,1725733858217,-4234.13,0.00126027,120]
[337521583,1725733858226,-17584.32,0.00126027,120]
[337521584,1725733858236,-893.27,0.00126027,120]
[337521585,1725733858246,-1875.73,0.00126027,120]
[337521586,1725733858255,-942.92,0.00126027,120]
[337521587,1725733858265,-500.0,0.00126027,120]
[337521588,1725733858274,-3269.67,0.00126027,120]
[337521589,1725733858284,-2000.0,0.001262,120]
[337521590,1725733858294,-583.892109,0.00126604,120]
[337521591,1725733858303,-166.107891,0.00126604,120]
[337521592,1725733858313,-300.0,0.00127923,120]
[337521593,1725733858322,-583.892109,0.001292,120]
[337521594,1725733858331,-166.107891,0.001292,120]
[337521595,1725733858342,-596.17121722,0.00129462,120]
[337521596,1725733858355,-1000.0,0.0013,120]
[337521597,1725733858364,-1500.0,0.0013,120]
[337521598,1725733858374,-1500.0,0.0013,120]
[337521599,1725733858384,-1598.831149,0.0013,63]
[337521600,1725733858393,-10000.0,0.0013,120]
[337521601,1725733858403,-300.0,0.00130652,120]
[337521602,1725733858413,-3917.18461198,0.0013132,28]
[337521603,1725733858425,-688.96,0.00131506,120]
[337521604,1725733858434,-3161.89,0.00131506,120]
[337521605,1725733858445,-1152.62,0.00131506,120]
[337521606,1725733858455,-1124.99,0.00131506,120]
[337521607,1725733858465,-560.72,0.00131506,120]
[337521608,1725733858475,-2174.31,0.00131506,120]
[337521609,1725733858484,-2074.5,0.00131506,120]
[337521610,1725733858494,-2862.78,0.00131506,120]
[337521611,1725733858503,-3000.59,0.00131506,120]
[337521612,1725733858514,-1000.0,0.00131506,120]
[337521613,1725733858524,-5530.21,0.00131506,120]
[337521614,1725733858534,-4234.13,0.00131506,120]
[337521615,1725733858545,-17584.32,0.00131506,120]
[337521616,1725733858556,-893.27,0.00131506,120]
[337521617,1725733858567,-1875.73,0.00131506,120]
[337521618,1725733858576,-942.92,0.00131506,120]
[337521619,1725733858585,-500.0,0.00131506,120]
[337521620,1725733858594,-3269.67,0.00131506,120]
[337521621,1725733858603,-583.892109,0.00131795,120]
[337521622,1725733858612,-166.107891,0.00131795,120]
[337521623,1725733858621,-300.0,0.0013338,120]
[337521624,1725733858631,-1536.27,0.00134246,120]
[337521625,1725733858640,-1536.27,0.00134246,120]
[337521626,1725733858650,-1536.27,0.00134246,120]
[337521627,1725733858662,-1536.27,0.00134246,120]
[337521628,1725733858673,-1536.27,0.00134246,120]
[337521629,1725733858686,-1536.27,0.00134246,120]
[337521630,1725733858696,-1536.27,0.00134246,120]
[337521631,1725733858705,-1536.27,0.00134246,120]
[337521632,1725733858715,-1536.27,0.00134246,120]
[337521633,1725733858725,-1536.27,0.00134246,120]
[337521634,1725733858734,-1536.27,0.00134246,120]
[337521635,1725733858745,-1536.27,0.00134246,120]
[337521636,1725733858757,-1536.27,0.00134246,120]
[337521637,1725733858767,-1536.27,0.00134246,120]
[337521638,1725733858777,-1536.27,0.00134246,120]
[337521639,1725733858832,-583.892109,0.00134391,120]
[337521640,1725733858841,-166.107891,0.00134391,120]
[337521641,1725733858850,-1500.0,0.00135,120]
[337521642,1725733858859,-1500.0,0.00135,120]
[337521643,1725733858868,-12028.1947364,0.00135,120]
[337521644,1725733858878,-500.0,0.00135654,120]
[337521645,1725733858887,-300.0,0.00136108,120]
[337521646,1725733858896,-2000.0,0.001362,120]
[337521647,1725733858906,-210.0,0.00136964,60]
[337521648,1725733858915,-5387.58,0.00136986,120]
[337521649,1725733858926,-688.96,0.00136986,120]
[337521650,1725733858935,-3161.89,0.00136986,120]
[337521651,1725733858946,-5000.0,0.00136986,120]
[337521652,1725733858957,-1000.0,0.00136986,120]
[337521653,1725733858966,-1000.0,0.00136986,120]
[337521654,1725733858975,-1000.0,0.00136986,120]
[337521655,1725733858984,-1000.0,0.00136986,120]
[337521656,1725733858994,-1000.0,0.00136986,120]
[337521657,1725733859003,-1000.0,0.00136986,120]
[337521658,1725733859013,-1000.0,0.00136986,120]
[337521659,1725733859024,-1000.0,0.00136986,120]
[337521660,1725733859035,-1000.0,0.00136986,120]
[337521661,1725733859045,-1000.0,0.00136986,120]
[337521662,1725733859055,-1000.0,0.00136986,120]
[337521663,1725733859064,-1000.0,0.00136986,120]
[337521664,1725733859073,-1000.0,0.00136986,120]
[337521665,1725733859082,-1000.0,0.00136986,120]
[337521666,1725733859092,-1000.0,0.00136986,120]
[337521667,1725733859102,-1011.04596848,0.00136986,120]
[337521668,1725733859111,-500.0,0.00136986,120]
[337521669,1725733859121,-500.0,0.00136986,120]
[337521670,1725733859130,-500.0,0.00136986,120]
[337521671,1725733859139,-500.0,0.00136986,120]
[337521672,1725733859149,-500.0,0.00136986,120]
[337521673,1725733859158,-500.0,0.00136986,120]
[337521674,1725733859167,-500.0,0.00136986,120]
[337521675,1725733859177,-500.0,0.00136986,120]
[337521676,1725733859186,-500.0,0.00136986,120]
[337521677,1725733859196,-500.0,0.00136986,120]
[337521678,1725733859205,-500.0,0.00136986,120]
[337521679,1725733859214,-500.0,0.00136986,120]
[337521680,1725733859224,-500.0,0.00136986,120]
[337521681,1725733859233,-500.0,0.00136986,120]
[337521682,1725733859243,-500.0,0.00136986,120]
[337521683,1725733859252,-500.0,0.00136986,120]
[337521684,1725733859262,-1152.62,0.00136986,120]
[337521685,1725733859273,-1124.99,0.00136986,120]
[337521686,1725733859282,-560.72,0.00136986,120]
[337521687,1725733859292,-500.0,0.00136986,120]
[337521688,1725733859301,-500.0,0.00136986,120]
[337521689,1725733859311,-500.0,0.00136986,120]
[337521690,1725733859320,-500.0,0.00136986,120]
[337521691,1725733859330,-514.16581651,0.00136986,120]
[337521692,1725733859339,-2174.31,0.00136986,120]
[337521693,1725733859348,-2074.5,0.00136986,120]
[337521694,1725733859359,-2000.0,0.00136986,120]
[337521695,1725733859369,-2862.78,0.00136986,120]
[337521696,1725733859378,-3000.59,0.00136986,120]
[337521697,1725733859387,-1000.0,0.00136986,120]
[337521698,1725733859397,-5530.21,0.00136986,120]
[337521699,1725733859406,-4234.13,0.00136986,120]
[337521700,1725733859416,-17584.32,0.00136986,120]
[337521701,1725733859426,-893.27,0.00136986,120]
[337521702,1725733859435,-1875.73,0.00136986,120]
[337521703,1725733859444,-942.92,0.00136986,120]
[337521704,1725733859454,-1536.27,0.00136986,120]
[337521705,1725733859463,-500.0,0.00136986,120]
[337521706,1725733859472,-3269.67,0.00136986,120]
[337521707,1725733859482,-583.892109,0.00136986,120]
[337521708,1725733859491,-166.107891,0.00136986,120]
[337521709,1725733859501,-500.0,0.0013867,120]
[337521710,1725733859511,-300.0,0.00138836,120]
[337521711,1725733859521,-152.0,0.00139493,120]
[337521712,1725733859530,-1500.0,0.0014,120]
[337521713,1725733859540,-3000.0,0.0014,120]
[337521714,1725733859549,-13063.94024639,0.0014,120]
[337521715,1725733859558,-2000.0,0.0014,120]
[337521716,1725733859567,-300.0,0.00141564,120]
[337521717,1725733859576,-688.96,0.00142465,120]
[337521718,1725733859585,-3161.89,0.00142465,120]
[337521719,1725733859594,-500.0,0.00142465,120]
[337521720,1725733859604,-1152.62,0.00142465,120]
[337521721,1725733859614,-1124.99,0.00142465,120]
[337521722,1725733859623,-560.72,0.00142465,120]
[337521723,1725733859632,-2174.31,0.00142465,120]
[337521724,1725733859644,-2074.5,0.00142465,120]
[337521725,1725733859654,-2862.78,0.00142465,120]
[337521726,1725733859664,-3000.59,0.00142465,120]
[337521727,1725733859674,-1000.0,0.00142465,120]
[337521728,1725733859686,-5530.21,0.00142465,120]
[337521729,1725733859696,-4234.13,0.00142465,120]
[337521730,1725733859706,-17584.32,0.00142465,120]
[337521731,1725733859715,-893.27,0.00142465,120]
[337521732,1725733859726,-1875.73,0.00142465,120]
[337521733,1725733859779,-942.92,0.00142465,120]
[337521734,1725733859788,-1536.27,0.00142465,120]
[337521735,1725733859798,-500.0,0.00142465,120]
[337521736,1725733859807,-3269.67,0.00142465,120]
[337521737,1725733859816,-300.0,0.00144293,120]
[337521738,1725733859826,-410.1493314,0.00144849,120]
[337521739,1725733859837,-1500.0,0.00145,120]
[337521740,1725733859847,-795.55391335,0.00145327,120]
[337521741,1725733859856,-300.0,0.00147021,120]
[337521742,1725733859866,-688.96,0.00147945,120]
[337521743,1725733859875,-3161.89,0.00147945,120]
[337521744,1725733859884,-500.0,0.00147945,120]
[337521745,1725733859894,-1152.62,0.00147945,120]
[337521746,1725733859903,-1124.99,0.00147945,120]
[337521747,1725733859912,-560.72,0.00147945,120]
[337521748,1725733859923,-2174.31,0.00147945,120]
[337521749,1725733859933,-2074.5,0.00147945,120]
[337521750,1725733859942,-2862.78,0.00147945,120]
[337521751,1725733859952,-3000.59,0.00147945,120]
[337521752,1725733859962,-1000.0,0.00147945,120]
[337521753,1725733859972,-5530.21,0.00147945,120]
[337521754,1725733859982,-4234.13,0.00147945,120]
[337521755,1725733859991,-17584.32,0.00147945,120]
[337521756,1725733860001,-893.27,0.00147945,120]
[337521757,1725733860011,-1875.73,0.00147945,120]
[337521758,1725733860022,-942.92,0.00147945,120]
[337521759,1725733860032,-1536.27,0.00147945,120]
[337521760,1725733860042,-500.0,0.00147945,120]
[337521761,1725733860053,-3269.67,0.00147945,120]
[337521762,1725733860062,-410.1493314,0.00148137,120]
[337521763,1725733860072,-410.1493314,0.00148137,120]
[337521764,1725733860082,-410.1493314,0.00148137,120]
[337521765,1725733860091,-64647.11098,0.0014888,120]
[337521766,1725733860101,-300.0,0.00149749,120]
[337521767,1725733860112,-1500.0,0.0015,120]
[337521768,1725733860122,-500.0,0.0015,120]
[337521769,1725733860132,-46398.558201,0.0015,120]
[337521770,1725733860142,-143760.0,0.0015,120]
[337521771,1725733860152,-251.548936,0.0015,30]
[337521772,1725733860162,-201695.8326125,0.0015,120]
[337521773,1725733860173,-166.514222,0.00150293,120]
[337521774,1725733860183,-220.0,0.00150663,120]
[337521775,1725733860193,-2000.0,0.00150684,120]
[337521776,1725733860204,-1000.0,0.00150684,7]
[337521777,1725733860214,-1000.0,0.00150684,7]
[337521778,1725733860224,-1000.0,0.00150684,7]
[337521779,1725733860234,-1000.0,0.00150684,7]
[337521780,1725733860244,-1000.0,0.00150684,7]
[337521781,1725733860254,-1000.0,0.00150684,7]
[337521782,1725733860265,-1000.0,0.00150684,7]
[337521783,1725733860275,-1000.0,0.00150684,7]
[337521784,1725733860285,-1000.0,0.00150684,7]
[337521785,1725733860295,-1000.0,0.00150684,7]
[337521786,1725733860305,-1000.0,0.00150684,7]